bitfinex/quotes_SOLUSD_20241209
["timestamp","ask_amount","ask_price","bid_price","bid_amount"]
[1733777639106,7.7067,220.92,220.67,70.0]
[1733777639107,7.7067,220.92,220.75,0.12549]
[1733777639282,7.7067,220.92,220.74,70.0]
[1733777639489,7.7067,220.92,220.67,5.50532527]
[1733777639490,7.7067,220.92,220.9,35.66009656]
[1733777640414,5.0,220.86,220.75,35.66009656]
[1733777640585,5.0,220.84,220.75,35.66009656]
[1733777640787,5.0,220.9,220.79,35.66009656]
[1733777641006,7.7067,220.92,220.75,13.62]
[1733777641181,7.7067,220.92,220.81,41.02549]
[1733777641392,7.7067,220.92,220.89,35.66009656]
[1733777641617,7.7067,220.92,220.71,5.87582527]
[1733777641618,7.7067,220.92,220.9,35.66009656]
[1733777641995,5.0,221.11,220.9,35.66009656]
[1733777642190,40.66009656,221.14,221.05,35.66009656]
[1733777642400,1.0901349,221.15,221.09,35.66009656]
[1733777642589,1.0901349,221.15,221.13,35.66009656]
[1733777642803,5.0,221.14,221.13,35.66009656]
[1733777643120,5.0,221.14,220.91,0.12549]
[1733777643121,1.0901349,221.15,220.93,11.3158]
[1733777643445,3.49e-05,221.15,221.14,71.32019312]
[1733777643716,7.6388349,221.42,221.15,95.01611386]
[1733777644019,5.0,221.34,221.18,70.0]
[1733777644191,5.0,221.27,221.25,35.66009656]
[1733777644518,5.0,221.2,221.16,35.66009656]
[1733777644723,5.0,221.15,221.11,35.66009656]
[1733777645020,5.0,221.04,220.99,35.66009656]
[1733777645229,5.0,221.3,220.84,6.069]
[1733777645230,5.0,221.01,220.97,35.66009656]
[1733777645392,7.6388349,221.02,220.97,35.66009656]
[1733777645718,5.0,220.91,220.89,13.62]
[1733777645883,35.66009656,220.91,220.88,18.11042]
[1733777646085,2.6388349,220.96,220.77,35.66009656]
[1733777646286,0.12549,220.89,220.69,5.0]
[1733777646493,0.12549,220.93,220.84,18.113437]
[1733777646698,0.12549,220.93,220.74,70.0]
[1733777646699,23.776884,220.93,220.74,70.0]
[1733777647005,0.12549,220.92,220.76,13.62]
[1733777647206,23.902374,220.89,220.76,13.62]
[1733777647407,2.6388349,220.88,220.83,35.66009656]
[1733777647608,0.84867366,221.03,220.75,2.638835]
[1733777647609,2.6388349,220.94,220.85,49.28009656]
[1733777648000,0.12549,220.85,220.75,2.638835]
[1733777648196,0.12549,220.78,220.75,2.638835]
[1733777648394,0.12549,220.85,220.57,27.28]
[1733777648395,5.12549,220.83,220.57,27.28]
[1733777648619,0.12549,220.81,220.54,11.3353]
[1733777648821,0.12549,220.81,220.54,13.604139]
[1733777649119,3.37746223,220.84,220.55,13.62]
[1733777649319,35.66009656,220.71,220.65,31.74659]
[1733777649524,0.12549,220.7,220.49,11.3381]
[1733777649819,35.66009656,220.71,220.6,53.78917856]
[1733777650023,0.84951365,220.83,220.68,35.66009656]
[1733777650024,35.66009656,220.78,220.68,35.66009656]
[1733777650328,35.66009656,220.78,220.55,35.66009656]
[1733777650329,0.12549,220.83,220.58,18.131105]
[1733777650694,5.0,220.81,220.58,18.131105]
[1733777650891,0.12549,220.79,220.51,0.77588426]
[1733777651189,0.12549,220.7,220.46,0.77588426]
[1733777651396,35.66009656,220.62,220.46,0.77588426]
[1733777651620,35.78558656,220.63,220.51,5.12549]
[1733777651822,35.78558656,220.63,220.46,0.77588426]
[1733777651823,35.66009656,220.53,220.44,0.77588426]
[1733777651997,0.12549,220.52,220.44,7.39479211]
[1733777652190,0.12549,220.52,220.44,5.90137426]
[1733777652397,0.12549,220.52,220.44,0.77588426]
[1733777652700,0.12549,220.52,220.44,0.86390287]
[1733777653008,0.12549,220.52,220.36,2.5281]
[1733777653009,35.66009656,220.46,220.41,0.86390287]
[1733777653207,0.12549,220.45,220.44,0.86390287]
[1733777653409,35.66009656,220.5,220.42,0.86416395]
[1733777653591,0.12549,220.53,220.47,35.66009656]
[1733777653918,0.12549,220.53,220.43,2.26957555]
[1733777653919,2.5281,220.64,220.48,2.26957555]
[1733777654122,0.12549,220.53,220.47,0.86416395]
[1733777654324,2.5281,220.64,220.48,0.86416395]
[1733777654523,2.5281,220.64,220.5,0.8644826]
[1733777654743,0.84981387,220.76,220.53,0.8644826]
[1733777654955,2.5281,220.79,220.56,0.8644826]
[1733777655226,35.66009656,220.72,220.62,35.66009656]
[1733777655426,35.66009656,220.7,220.6,35.66009656]
[1733777655727,35.66009656,220.77,220.68,35.66009656]
[1733777656026,2.5281,220.79,220.61,3.1334625]
[1733777656325,35.66009656,220.76,220.67,35.66009656]
[1733777656514,2.5281,220.79,220.71,35.66009656]
[1733777656719,0.8490721,220.91,220.67,5.0]
[1733777656919,2.5281,220.94,220.77,136.6]
[1733777657116,35.66009656,220.93,220.83,35.66009656]
[1733777657329,2.5281,220.94,220.75,35.66009656]
[1733777657330,35.66009656,220.85,220.75,35.66009656]
[1733777657497,35.66009656,220.87,220.79,35.66009656]
[1733777657908,3.37680363,220.94,220.74,35.66009656]
[1733777658111,35.66009656,220.86,220.68,11.3284]
[1733777658321,3.37691185,220.94,220.73,35.66009656]
[1733777658498,35.66009656,220.88,220.7,88.62]
[1733777658698,35.66009656,220.9,220.82,35.66009656]
[1733777658899,35.66009656,220.99,220.71,2.39345327]
[1733777658900,35.66009656,220.96,220.86,35.66009656]
[1733777659093,35.66009656,220.88,220.78,35.66009656]
[1733777659325,0.12549,220.8,220.69,35.66009656]
[1733777659547,0.12549,220.8,220.62,0.8644826]
[1733777659698,5.0,220.79,220.59,0.8644826]
[1733777659896,35.66009656,220.65,220.57,35.66009656]
[1733777660101,35.66009656,220.71,220.61,35.66009656]
[1733777660399,35.66009656,220.63,220.62,2.26873812]
[1733777660728,35.66009656,220.67,220.58,0.8644826]
[1733777660932,0.12549,220.66,220.58,2.268792]
[1733777661148,0.12549,220.66,220.54,3.1332746]
[1733777661430,35.66009656,220.62,220.53,0.8644826]
[1733777661635,35.66009656,220.58,220.53,2.268792]
[1733777661813,0.12549,220.55,220.51,0.8644826]
[1733777662013,35.66009656,220.54,220.48,0.8644826]
[1733777662210,5.0,220.66,220.52,0.8644826]
[1733777662410,5.0,220.66,220.3,76.4536]
[1733777662411,23.902374,220.61,220.5,3.1332746]
[1733777662710,5.0,220.63,220.53,0.8644826]
[1733777662921,24.75207141,220.62,220.53,0.8644826]
[1733777663228,0.12549,220.58,220.49,0.8644826]
[1733777663404,0.12549,220.58,220.5,2.268792]
[1733777663599,0.12549,220.58,220.51,2.268792]
[1733777663845,35.66009656,220.68,220.57,35.66009656]
[1733777664008,35.66009656,220.68,220.52,16.7532746]
[1733777664009,35.66009656,220.63,220.53,0.8644826]
[1733777664315,35.66009656,220.59,220.54,3.1332746]
[1733777664527,0.8499204,220.74,220.56,0.8644826]
[1733777664743,0.59393241,220.79,220.58,23.902374]
[1733777665027,0.59393241,220.79,220.63,13.62]
[1733777665330,0.59393241,220.79,220.71,0.8644826]
[1733777665542,0.59393241,220.79,220.72,3.1332746]
[1733777665709,0.59393241,220.79,220.53,39.0089]
[1733777665710,0.59393241,220.79,220.73,2.268792]
[1733777665900,35.66009656,220.73,220.69,0.8644826]
[1733777666102,35.66009656,220.71,220.69,0.8644826]
[1733777666318,35.66009656,220.71,220.59,35.66009656]
[1733777666514,0.84967666,220.75,220.55,35.66009656]
[1733777666515,35.66009656,220.64,220.55,35.66009656]
[1733777666727,35.66009656,220.77,220.56,0.12549]
[1733777666930,0.59393241,220.79,220.7,0.97019314]
[1733777667110,0.59393241,220.79,220.72,0.97019314]
[1733777667637,35.66009656,220.78,220.75,0.97019314]
[1733777667827,0.59393241,220.79,220.75,0.97019314]
[1733777668235,35.66009656,220.78,220.69,35.66009656]
[1733777668418,0.59393241,220.79,220.73,35.66009656]
[1733777668619,36.25402897,220.79,220.7,35.66009656]
[1733777668839,35.66009656,220.77,220.68,35.66009656]
[1733777669015,36.25402897,220.79,220.74,0.97449839]
[1733777669340,0.12549,220.78,220.77,0.84909839]
[1733777669504,0.97491209,220.78,220.5,11.3375]
[1733777669706,23.776884,220.77,220.53,75.0]
[1733777669938,23.776884,220.78,220.48,11.3388]
[1733777670217,0.59393241,220.79,220.57,27.40549]
[1733777670515,36.25402897,220.79,220.68,35.66009656]
[1733777670723,35.66009656,220.77,220.68,35.66009656]
[1733777671306,0.59393241,220.79,220.73,35.66009656]
[1733777671506,0.59393241,220.79,220.75,35.66009656]
[1733777671712,0.59393241,220.79,220.66,66.34211646]
[1733777671713,35.66009656,220.77,220.66,39.06211646]
[1733777671952,0.59393241,220.79,220.63,23.776884]
[1733777672107,0.59393241,220.79,220.71,70.12549]
[1733777672310,6.1818,220.97,220.73,0.12549]
[1733777672713,5.84858896,220.96,220.63,70.0]
[1733777672919,5.84858896,220.96,220.64,23.776884]
[1733777672920,0.12549,220.95,220.64,23.776884]
[1733777673125,35.66009656,220.83,220.73,35.66009656]
[1733777673333,35.66009656,220.87,220.77,35.66009656]
[1733777673509,35.66009656,220.91,220.82,35.66009656]
[1733777673710,35.66009656,220.87,220.78,35.66009656]
[1733777673914,35.66009656,220.87,220.79,2.26649149]
[1733777674116,35.66009656,220.85,220.8,2.26649149]
[1733777674314,35.66009656,220.81,220.71,3.4020199]
[1733777674536,35.66009656,220.83,220.74,35.66009656]
[1733777674754,35.66009656,220.79,220.78,18.118762]
[1733777675043,0.12549,220.78,220.66,3.4020199]
[1733777675212,0.12549,220.78,220.67,3.4020199]
[1733777675418,0.12549,220.77,220.68,2.26711292]
[1733777675616,0.12549,220.75,220.69,2.26711292]
[1733777675815,0.12549,220.75,220.7,2.26711292]
[1733777676025,0.12549,220.74,220.7,2.26711292]
[1733777676348,23.902374,220.7,220.59,10.0]
[1733777676516,35.66009656,220.67,220.6,2.26846055]
[1733777676718,35.66009656,220.69,220.62,0.12549]
[1733777677023,35.66009656,220.71,220.63,2.26846055]
[1733777677227,35.66009656,220.69,220.64,2.26846055]
[1733777677407,35.66009656,220.69,220.65,2.26846055]
[1733777677745,35.66009656,220.77,220.69,23.776884]
[1733777677919,35.66009656,220.77,220.69,27.1789039]
[1733777678238,35.66009656,220.77,220.7,0.12549]
[1733777678444,35.66009656,220.77,220.63,11.3311]
[1733777678614,35.66009656,220.73,220.64,23.776884]
[1733777679023,35.66009656,220.73,220.65,0.12549]
[1733777679520,35.66009656,220.69,220.59,45.66009656]
[1733777679825,5.0,220.86,220.59,45.66009656]
[1733777679826,35.66009656,220.73,220.64,0.12549]
[1733777680228,35.66009656,220.71,220.61,35.66009656]
[1733777680548,35.66009656,220.63,220.54,6.7814305]
[1733777680745,0.12549,220.7,220.57,0.70483964]
[1733777680971,0.12549,220.7,220.55,3.40116393]
[1733777681171,0.12549,220.72,220.56,3.40116393]
[1733777681455,11.92775341,220.74,220.57,3.40116393]
[1733777681456,0.12549,220.73,220.57,3.40116393]
[1733777681861,0.12549,220.73,220.58,3.40116393]
[1733777682030,35.66009656,220.69,220.61,0.12549]
[1733777682230,35.66009656,220.71,220.62,35.66009656]
[1733777682435,35.66009656,220.77,220.63,3.40116393]
[1733777682436,0.12549,220.75,220.63,3.40116393]
[1733777682755,35.66009656,220.64,220.53,35.66009656]
[1733777682963,10.9281262,220.64,220.61,0.74449078]
[1733777683167,35.66009656,220.65,220.57,0.12549]
[1733777683329,35.66009656,220.69,220.62,0.12549]
[1733777683531,35.66009656,220.77,220.68,0.12549]
[1733777683870,16.0782,220.84,220.59,3.39738559]
[1733777684159,6.0782,220.84,220.61,0.25098]
[1733777684459,6.4172,220.95,220.73,136.6]
[1733777684630,0.84875526,220.94,220.74,23.776884]
[1733777684826,0.84875526,220.94,220.71,35.66009656]
[1733777684827,35.66009656,220.81,220.71,35.66009656]
[1733777685033,35.66009656,220.81,220.72,23.776884]
[1733777685248,35.66009656,220.88,220.72,23.776884]
[1733777685249,35.66009656,220.83,220.73,35.66009656]
[1733777685434,0.84875526,220.94,220.77,35.66009656]
[1733777685435,35.66009656,220.86,220.77,35.66009656]
[1733777685762,35.66009656,220.92,220.82,23.902374]
[1733777686074,35.66009656,220.92,220.83,35.66009656]
[1733777686280,35.66009656,220.9,220.83,0.12549]
[1733777686443,6.4172,221.06,220.83,0.12549]
[1733777686444,35.66009656,220.94,220.86,23.902374]
[1733777686637,35.66009656,221.0,220.91,23.902374]
[1733777687140,35.66009656,220.98,220.91,23.902374]
[1733777687596,35.66009656,220.98,220.9,35.66009656]
[1733777687744,35.66009656,220.96,220.88,35.66009656]
[1733777688133,35.66009656,220.94,220.84,35.66009656]
[1733777688471,35.66009656,220.97,220.9,0.12549]
[1733777688629,35.66009656,220.98,220.89,59.43698056]
[1733777688832,35.66009656,220.98,220.89,35.66009656]
[1733777689034,35.66009656,221.0,220.91,35.66009656]
[1733777689239,35.66009656,220.98,220.89,35.66009656]
[1733777689466,5.84832088,221.09,220.89,35.66009656]
[1733777689666,35.66009656,221.12,221.03,35.66009656]
[1733777689938,5.84828768,221.2,220.99,35.66009656]
[1733777689939,35.66009656,221.08,220.99,35.66009656]
[1733777690370,35.66009656,221.12,221.03,35.66009656]
[1733777690553,35.66009656,221.12,221.01,35.66009656]
[1733777691277,5.0,221.17,221.0,35.66009656]
[1733777691486,35.66009656,221.08,220.98,35.66009656]
[1733777691657,35.66009656,221.02,220.92,35.66009656]
[1733777691864,35.66009656,221.0,220.92,35.66009656]
[1733777692051,35.66009656,220.96,220.71,10.0]
[1733777692258,35.66009656,220.92,220.84,35.66009656]
[1733777692453,35.66009656,220.86,220.76,35.66009656]
[1733777692654,0.84902417,220.95,220.75,35.66009656]
[1733777692888,0.84902417,220.95,220.64,75.0]
[1733777692889,35.66009656,220.91,220.67,5.0]
[1733777693058,0.8487553,220.98,220.68,75.0]
[1733777693059,6.73932574,220.96,220.68,75.0]
[1733777693254,35.66009656,220.94,220.85,35.66009656]
[1733777693473,35.66009656,220.95,220.86,35.66009656]
[1733777693984,6.73932574,220.96,220.88,35.66009656]
[1733777694280,35.66009656,220.97,220.88,35.66009656]
[1733777694585,5.0,221.05,220.9,35.66009656]
[1733777694586,35.66009656,220.99,220.9,35.66009656]
[1733777694958,35.66009656,220.99,220.91,0.12549]
[1733777695263,35.66009656,221.03,220.94,35.66009656]
[1733777695487,35.66009656,221.03,220.92,35.66009656]
[1733777695780,35.66009656,220.96,220.86,35.66009656]
[1733777696281,35.66009656,220.94,220.86,35.66009656]
[1733777696782,35.66009656,220.92,220.82,35.66009656]
[1733777696992,35.66009656,220.86,220.76,35.66009656]
[1733777697193,35.66009656,220.84,220.74,35.66009656]
[1733777697358,35.66009656,220.78,220.69,35.66009656]
[1733777697558,35.66009656,220.72,220.55,35.66009656]
[1733777697886,0.12549,220.85,220.55,35.66009656]
[1733777697887,35.66009656,220.76,220.55,35.66009656]
[1733777698094,35.66009656,220.8,220.72,35.66009656]
[1733777698384,35.66009656,220.84,220.76,35.66009656]
[1733777698573,42.18729656,220.86,220.77,0.12549]
[1733777698769,35.66009656,220.84,220.76,35.66009656]
[1733777699288,35.66009656,220.8,220.72,35.66009656]
[1733777699489,35.66009656,220.8,220.7,35.66009656]
[1733777699695,35.66009656,220.78,220.7,35.66009656]
[1733777699867,35.66009656,220.78,220.68,35.66009656]
[1733777700387,35.66009656,220.74,220.64,35.66009656]
[1733777700606,35.66009656,220.72,220.62,35.66009656]
[1733777700898,35.66009656,220.72,220.54,35.66009656]
[1733777700899,35.66009656,220.64,220.54,35.66009656]
[1733777701066,35.66009656,220.64,220.56,35.66009656]
[1733777701273,35.66009656,220.68,220.6,35.66009656]
[1733777701578,35.66009656,220.68,220.58,35.66009656]
[1733777701783,35.66009656,220.66,220.58,35.66009656]
[1733777701983,35.66009656,220.66,220.54,18.136019]
[1733777701984,35.66009656,220.62,220.54,18.136019]
[1733777702186,35.66009656,220.58,220.54,18.136019]
[1733777702395,35.66009656,220.56,220.54,18.136019]
[1733777702626,35.66009656,220.56,220.45,35.66009656]
[1733777703105,5.85002818,220.65,220.45,35.66009656]
[1733777703106,35.66009656,220.54,220.45,35.66009656]
[1733777703469,3.72832818,220.65,220.41,18.1467]
[1733777703470,35.66009656,220.48,220.41,18.1467]
[1733777703672,35.66009656,220.42,220.33,35.66009656]
[1733777703969,6.3439,220.51,220.32,0.4741727]
[1733777703970,0.85057338,220.41,220.32,0.4741727]
[1733777704192,35.66009656,220.4,220.32,0.4741727]
[1733777704399,0.85078561,220.46,220.33,35.66009656]
[1733777704581,35.66009656,220.44,220.35,35.66009656]
[1733777704782,35.66009656,220.38,220.32,0.4741727]
[1733777705090,0.85079837,220.47,220.34,35.66009656]
[1733777705265,35.66009656,220.44,220.34,35.66009656]
[1733777705467,6.3439,220.51,220.42,35.66009656]
[1733777705663,35.66009656,220.53,220.46,0.12549]
[1733777705897,6.3439,220.62,220.52,0.12549]
[1733777706100,35.66009656,220.63,220.56,0.12549]
[1733777706279,7.19380246,220.72,220.6,0.12549]
[1733777706483,35.66009656,220.68,220.6,0.12549]
[1733777706684,0.84962347,220.67,220.44,23.902374]
[1733777706887,0.84962347,220.67,220.33,56.733]
[1733777706888,10.0,220.66,220.33,56.733]
[1733777707103,5.0,220.64,220.36,23.776884]
[1733777707306,6.3439,220.72,220.37,0.12549]
[1733777707307,5.0,220.58,220.37,0.12549]
[1733777707479,10.0,220.65,220.38,23.776884]
[1733777707807,35.66009656,220.51,220.42,35.66009656]
[1733777707993,35.66009656,220.51,220.43,0.12549]
[1733777708297,35.66009656,220.55,220.48,35.66009656]
[1733777708601,35.66009656,220.51,220.42,35.66009656]
[1733777708776,35.66009656,220.45,220.36,35.66009656]
[1733777708974,0.85032402,220.5,220.23,28.16277326]
[1733777708975,35.66009656,220.39,220.24,7.04069331]
[1733777709185,0.25098,220.46,220.22,7.04069331]
[1733777709402,0.85075515,220.49,220.18,7.04069331]
[1733777709403,0.12549,220.44,220.18,7.04069331]
[1733777709574,0.12549,220.44,220.27,18.157159]
[1733777709978,0.85080846,220.44,220.33,0.12549]
[1733777710173,35.66009656,220.42,220.33,35.78558656]
[1733777710378,36.51074739,220.49,220.39,35.66009656]
[1733777710677,41.80929656,220.51,220.44,0.12549]
[1733777710878,35.66009656,220.53,220.45,35.66009656]
[1733777711089,3.58564544,220.58,220.46,0.12549]
[1733777711294,35.66009656,220.59,220.5,0.12549]
[1733777711604,35.66009656,220.59,220.32,0.4741727]
[1733777711605,35.66009656,220.51,220.32,0.4741727]
[1733777711795,35.66009656,220.4,220.32,0.4741727]
[1733777711999,35.66009656,220.37,220.32,0.4741727]
[1733777712202,0.8508398,220.36,220.32,0.4741727]
[1733777712403,5.0,220.34,220.13,7.04069331]
[1733777712582,0.85129582,220.33,220.12,7.04069331]
[1733777712927,6.1492,220.39,220.13,7.04069331]
[1733777712928,0.12549,220.34,220.13,7.04069331]
[1733777713205,0.12549,220.34,220.0,10.0]
[1733777713206,35.66009656,220.19,220.09,42.70078987]
[1733777713385,35.66009656,220.19,220.11,35.66009656]
[1733777713575,35.66009656,220.23,220.13,35.66009656]
[1733777713777,35.66009656,220.23,220.04,7.04069331]
[1733777713778,35.66009656,220.17,220.09,35.66009656]
[1733777713995,5.0,220.32,220.03,5.0]
[1733777713996,35.66009656,220.23,220.15,35.66009656]
[1733777714322,35.66009656,220.21,220.05,7.04069331]
[1733777714621,35.66009656,220.23,220.14,35.66009656]
[1733777715128,35.66009656,220.28,220.18,35.66009656]
[1733777715421,35.66009656,220.28,220.19,0.12549]
[1733777716127,35.66009656,220.2,220.1,35.66009656]
[1733777716420,35.66009656,220.22,220.14,0.12549]
[1733777716621,35.66009656,220.28,220.2,0.12549]
[1733777716828,40.66009656,220.44,220.25,0.12549]
[1733777717040,35.66009656,220.35,220.27,0.12549]
[1733777717194,35.66009656,220.35,220.11,6.99582858]
[1733777717195,35.66009656,220.29,220.11,6.99582858]
[1733777717505,35.66009656,220.26,220.16,35.66009656]
[1733777717696,35.66009656,220.28,220.11,0.68109835]
[1733777717900,35.66009656,220.28,220.2,0.12549]
[1733777718117,35.66009656,220.34,220.26,0.12549]
[1733777718314,35.66009656,220.38,220.3,0.12549]
[1733777718520,0.84851303,220.43,220.37,35.66009656]
[1733777718694,2.7354,220.48,220.4,23.902374]
[1733777718695,35.66009656,220.48,220.4,23.902374]
[1733777718902,0.84851303,220.47,220.25,0.68033299]
[1733777719113,5.0,220.49,220.26,23.902374]
[1733777719323,5.0,220.47,220.28,23.776884]
[1733777719523,5.0,220.42,220.17,0.68076496]
[1733777719714,0.84851303,220.41,220.14,11.3563]
[1733777719914,35.66009656,220.27,220.18,35.66009656]
[1733777720308,35.66009656,220.25,220.16,35.66009656]
[1733777720507,35.66009656,220.27,220.18,35.66009656]
[1733777720835,35.66009656,220.29,220.19,35.66009656]
[1733777721035,35.66009656,220.29,220.11,35.66009656]
[1733777721036,35.66009656,220.31,220.21,35.66009656]
[1733777721329,35.66009656,220.31,220.22,0.12549]
[1733777721538,35.66009656,220.37,220.28,0.12549]
[1733777721697,35.66009656,220.39,220.3,0.12549]
[1733777721899,35.66009656,220.43,220.34,0.12549]
[1733777722234,35.66009656,220.45,220.36,0.12549]
[1733777722542,35.66009656,220.55,220.41,0.12549]
[1733777722543,35.66009656,220.49,220.41,0.12549]
[1733777722727,35.66009656,220.51,220.43,24.027864]
[1733777723037,35.66009656,220.51,220.43,24.70805517]
[1733777723198,35.66009656,220.53,220.45,24.027864]
[1733777723402,35.66009656,220.51,220.45,24.027864]
[1733777723602,35.66009656,220.47,220.45,23.776884]
[1733777723806,35.66009656,220.51,220.46,0.25098]
[1733777724022,35.66009656,220.55,220.48,0.12549]
[1733777724210,35.66009656,220.59,220.5,59.68796056]
[1733777724404,35.66009656,220.61,220.53,24.027864]
[1733777724604,35.66009656,220.59,220.53,24.027864]
[1733777724812,35.66009656,220.59,220.53,0.12549]
[1733777725018,35.66009656,220.61,220.54,0.12549]
[1733777725216,35.66009656,220.59,220.54,0.12549]
[1733777725398,35.66009656,220.59,220.53,0.12549]
[1733777725604,35.66009656,220.55,220.47,0.12549]
[1733777725803,35.66009656,220.48,220.39,35.66009656]
[1733777726035,35.66009656,220.48,220.4,0.68027295]
[1733777726334,0.84851303,220.54,220.46,0.12549]
[1733777726335,35.66009656,220.54,220.46,0.12549]
[1733777726628,5.0,220.73,220.46,0.12549]
[1733777726629,35.66009656,220.56,220.48,0.12549]
[1733777726803,35.66009656,220.56,220.48,0.80551684]
[1733777726999,35.66009656,220.58,220.5,0.12549]
[1733777727230,35.66009656,220.58,220.52,0.12549]
[1733777727531,35.66009656,220.56,220.52,0.12549]
[1733777727717,35.66009656,220.56,220.51,0.12549]
[1733777727914,35.66009656,220.56,220.5,0.25098]
[1733777728724,0.84851303,220.65,220.5,0.12549]
[1733777728725,35.66009656,220.54,220.5,0.12549]
[1733777729038,35.66009656,220.58,220.5,0.12549]
[1733777729231,35.66009656,220.6,220.52,23.902374]
[1733777729407,35.66009656,220.6,220.44,35.66009656]
[1733777729408,35.66009656,220.64,220.55,35.66009656]
[1733777729731,35.66009656,220.64,220.56,23.902374]
[1733777729931,35.66009656,220.68,220.6,0.12549]
[1733777730142,35.66009656,220.68,220.6,24.7075265]
[1733777730352,35.66009656,220.7,220.62,23.902374]
[1733777730553,35.66009656,220.72,220.63,0.67951222]
[1733777730710,35.66009656,220.72,220.54,5.0]
[1733777730711,35.66009656,220.66,220.57,35.66009656]
[1733777730916,35.66009656,220.66,220.58,0.67971292]
[1733777731110,35.66009656,220.64,220.55,35.66009656]
[1733777731319,35.66009656,220.64,220.57,35.66009656]
[1733777731641,35.66009656,220.66,220.58,0.67976399]
[1733777731938,35.66009656,220.68,220.59,35.66009656]
[1733777732114,35.66009656,220.68,220.6,0.67966109]
[1733777732311,0.84851303,220.76,220.61,23.776884]
[1733777732312,35.66009656,220.66,220.61,23.776884]
[1733777732833,35.66009656,220.66,220.59,23.776884]
[1733777733235,35.66009656,220.64,220.57,23.902374]
[1733777733761,35.66009656,220.7,220.62,0.25098]
[1733777733933,35.66009656,220.7,220.64,0.25098]
[1733777734138,35.66009656,220.74,220.66,0.25098]
[1733777734321,35.66009656,220.76,220.68,24.027864]
[1733777734520,35.66009656,220.76,220.7,24.027864]
[1733777734732,0.84851303,220.87,220.71,35.66009656]
[1733777734733,35.66009656,220.78,220.71,35.66009656]
[1733777735049,35.66009656,220.82,220.75,0.12549]
[1733777735229,0.84851303,220.87,220.75,0.12549]
[1733777735230,35.66009656,220.84,220.77,0.12549]
[1733777735630,35.66009656,220.86,220.79,0.12549]
[1733777735824,0.84851303,220.91,220.79,0.12549]
[1733777735825,35.66009656,220.82,220.79,0.12549]
[1733777736150,35.66009656,220.8,220.78,23.776884]
[1733777736649,35.66009656,220.82,220.78,23.776884]
[1733777736948,35.66009656,220.8,220.78,23.776884]
[1733777737127,35.66009656,220.8,220.72,0.12549]
[1733777737326,35.66009656,220.78,220.7,59.56247056]
[1733777737538,0.84851303,220.87,220.72,23.902374]
[1733777737539,35.66009656,220.8,220.72,23.902374]
[1733777737743,0.84851303,220.87,220.72,23.902374]
[1733777737744,35.66009656,220.78,220.72,23.776884]
[1733777738062,35.66009656,220.78,220.73,0.12549]
[1733777738637,35.66009656,220.78,220.68,35.66009656]
[1733777738834,0.84851303,220.87,220.69,0.6793441]
[1733777738835,35.66009656,220.76,220.69,0.6793441]
[1733777739163,35.66009656,220.7,220.59,35.66009656]
[1733777739368,35.66009656,220.68,220.6,0.67961087]
[1733777739526,35.66009656,220.62,220.54,0.6796245]
[1733777739718,35.66009656,220.62,220.4,27.685]
[1733777739719,0.84851303,220.65,220.49,35.66009656]
[1733777739923,35.66009656,220.57,220.49,35.66009656]
[1733777740120,35.66009656,220.5,220.41,36.34009641]
[1733777740354,35.66009656,220.48,220.39,35.66009656]
[1733777740753,35.66009656,220.48,220.36,0.9211827]
[1733777740754,35.66009656,220.41,220.36,0.2409883]
[1733777740957,35.66009656,220.37,220.36,0.2409883]
[1733777741474,35.66009656,220.37,220.36,8.83e-05]
[1733777741785,5.0,220.33,220.14,35.66009656]
[1733777741952,35.66009656,220.21,220.12,36.34091749]
[1733777742152,0.84851303,220.32,220.15,35.66009656]
[1733777742153,35.66009656,220.25,220.15,35.66009656]
[1733777742385,35.66009656,220.27,220.17,35.66009656]
[1733777742678,0.84851303,220.32,220.08,5.6758371]
[1733777742679,35.66009656,220.25,220.15,35.66009656]
[1733777742897,35.66009656,220.25,220.17,35.66009656]
[1733777743114,35.66009656,220.21,220.09,0.68096722]
[1733777743251,0.84851303,220.32,220.1,35.66009656]
[1733777743252,35.66009656,220.19,220.1,35.66009656]
[1733777743456,0.84851303,220.32,220.12,35.66009656]
[1733777743457,35.66009656,220.21,220.12,35.66009656]
[1733777743687,35.66009656,220.21,220.14,0.12549]
[1733777744078,35.66009656,220.23,220.15,0.681094]
[1733777744394,35.66009656,220.21,220.12,35.66009656]
[1733777744705,35.66009656,220.21,220.13,0.68114456]
[1733777744897,0.84851303,220.32,220.08,0.6758371]
[1733777744898,35.66009656,220.19,220.1,35.66009656]
[1733777745100,35.66009656,220.15,220.08,0.6758371]
[1733777745271,35.66009656,220.12,220.08,0.6758371]